bitfinex/quotes_ETHUSD_20250114
["timestamp","ask_amount","ask_price","bid_price","bid_amount"]
[1736887016361,0.194,3222.8,3222.1,3.10354]
[1736887016759,0.0512595,3222.7,3222.1,3.10354]
[1736887017059,0.0512595,3222.7,3221.7,3.10391]
[1736887017262,0.0512595,3222.7,3221.9,3.10372]
[1736887017715,0.0512595,3222.7,3221.7,3.10391]
[1736887018067,0.0512595,3222.7,3222.1,3.10356]
[1736887018474,0.0512595,3222.7,3221.6,1.41759766]
[1736887018677,0.55,3222.6,3221.4,6.34186137]
[1736887018867,0.55,3222.4,3221.4,3.10418]
[1736887019067,3.65331,3222.4,3221.5,3.10414]
[1736887019308,0.05099165,3222.3,3221.5,3.10414]
[1736887019666,3.15437165,3222.3,3221.3,3.8878]
[1736887019974,0.05099165,3222.3,3221.3,3.8878]
[1736887020186,3.65356,3222.1,3221.1,3.1045]
[1736887020393,3.15416586,3222.0,3221.1,3.1045]
[1736887020793,3.05047586,3222.0,3220.9,3.23768137]
[1736887020987,3.05047586,3222.0,3220.7,7.12606137]
[1736887020988,0.55,3221.7,3220.7,7.12606137]
[1736887021201,0.05020264,3221.6,3220.7,6.34256137]
[1736887021502,0.05020264,3221.6,3220.4,4.66871765]
[1736887021503,3.10429,3221.4,3220.6,0.62163825]
[1736887021663,2.93935365,3221.5,3220.5,3.23768137]
[1736887021871,0.05017773,3221.3,3220.3,3.23768137]
[1736887022112,0.05015036,3221.4,3220.5,3.10502]
[1736887022278,2.93935365,3221.5,3220.6,3.10499]
[1736887022279,0.05007054,3221.2,3220.6,3.10499]
[1736887022483,2.93935365,3221.5,3220.6,3.10499]
[1736887022484,0.05009012,3221.3,3220.6,3.10499]
[1736887022670,0.04990448,3221.1,3220.4,3.7184658]
[1736887023045,3.10462,3221.1,3220.2,3.23768137]
[1736887023249,2.93935365,3221.2,3220.2,3.23768137]
[1736887023540,0.04730722,3221.0,3220.2,3.10536]
[1736887023708,0.04741442,3221.1,3220.2,3.10536]
[1736887023908,0.04735993,3220.9,3220.2,3.10536]
[1736887024108,0.04730557,3221.0,3220.3,3.10528]
[1736887024308,0.04733235,3220.8,3220.3,3.10528]
[1736887024509,0.04731204,3220.9,3220.3,3.10528]
[1736887024736,0.04731204,3220.9,3220.1,0.63730823]
[1736887024737,2.93935365,3221.5,3220.1,0.63730823]
[1736887024943,0.04729245,3220.8,3220.7,3.10488]
[1736887025121,3.10339,3222.3,3221.3,3.10424]
[1736887025316,0.60427437,3222.2,3221.3,3.10424]
[1736887025521,0.64973208,3222.2,3221.3,3.10424]
[1736887025908,3.64973208,3222.2,3221.3,3.10424]
[1736887026852,3.64973208,3222.2,3220.9,6.34235137]
[1736887026853,0.04545771,3222.2,3221.6,3.10404]
[1736887027058,0.04545771,3222.2,3221.4,3.10421]
[1736887027224,2.93935365,3222.4,3221.4,3.10421]
[1736887027425,0.04615769,3222.1,3221.2,3.1044]
[1736887027642,0.55,3222.2,3221.3,3.10429]
[1736887027858,0.04613812,3222.0,3221.4,0.03104031]
[1736887028048,0.04613812,3222.0,3221.5,3.1041]
[1736887028250,3.0,3222.4,3221.5,3.1041]
[1736887028448,0.04627696,3221.9,3221.5,3.1041]
[1736887028673,0.55,3222.3,3221.5,3.1041]
[1736887028867,0.04625739,3221.8,3221.3,3.10432]
[1736887029176,3.10357,3222.1,3221.1,3.86115]
[1736887029475,0.04623781,3221.7,3221.1,3.86115]
[1736887029625,4.693957,3222.3,3221.1,0.7567]
[1736887029831,3.0,3222.4,3221.5,3.10407]
[1736887030031,0.04624942,3222.2,3221.5,3.10407]
[1736887030253,0.04626899,3222.3,3221.5,3.10407]
[1736887030484,3.0,3222.4,3221.3,3.10433]
[1736887030485,0.04622984,3222.1,3221.3,3.10433]
[1736887030659,0.04623211,3222.2,3221.5,3.1041]
[1736887030833,0.04623211,3222.2,3221.6,3.104]
[1736887031051,3.0,3222.4,3221.6,3.104]
[1736887031243,0.04467674,3222.1,3221.6,3.104]
[1736887031442,3.0,3222.4,3221.6,3.104]
[1736887031649,3.194,3222.5,3221.6,3.104]
[1736887031964,0.04471589,3222.3,3221.6,3.104]
[1736887032274,0.04473546,3222.4,3221.6,3.10403]
[1736887032565,0.04469631,3222.2,3221.6,3.10403]
[1736887032761,0.04471589,3222.3,3221.6,3.10403]
[1736887032970,0.04467674,3222.1,3221.3,0.63334286]
[1736887033171,0.04469631,3222.2,3221.3,3.63334286]
[1736887033343,3.55818996,3223.1,3221.3,3.63334286]
[1736887033344,3.194,3223.0,3221.4,0.7669]
[1736887033544,0.675219,3222.9,3221.4,0.7669]
[1736887033766,0.04344544,3222.9,3222.1,3.10347]
[1736887034652,0.04344544,3222.9,3222.3,3.10329]
[1736887034959,3.10251,3223.2,3222.3,3.10329]
[1736887035485,0.043622,3223.1,3222.1,3.10353]
[1736887035768,0.043622,3223.1,3221.9,3.87056]
[1736887035769,3.10281,3222.9,3221.9,3.87061]
[1736887035972,3.10281,3222.9,3221.9,3.10371]
[1736887036276,0.04245547,3222.8,3221.9,3.10371]
[1736887036572,0.04245547,3222.8,3221.8,0.62823155]
[1736887036751,0.04245547,3222.8,3222.0,3.10365]
[1736887036947,0.04245547,3222.8,3221.8,0.62823155]
[1736887037175,0.04245547,3222.8,3222.1,3.1035]
[1736887037394,0.196,3223.0,3221.8,3.73201155]
[1736887037395,0.196,3223.0,3221.8,0.62823155]
[1736887037575,0.04238809,3222.7,3221.9,3.10371]
[1736887037896,3.14378329,3222.9,3221.9,3.10371]
[1736887038099,0.04092459,3222.6,3221.9,3.10371]
[1736887038282,6.70217162,3222.8,3221.7,3.10386]
[1736887038593,0.04087659,3222.5,3221.8,3.10384]
[1736887038804,0.04091573,3222.7,3221.8,3.10384]
[1736887039092,3.10306,3222.7,3221.7,0.6111935]
[1736887039285,0.04089402,3222.6,3221.7,3.7151135]
[1736887039637,0.04089402,3222.6,3221.5,3.10412]
[1736887039638,3.10319,3222.5,3221.5,3.10412]
[1736887039940,0.04089402,3222.6,3221.6,3.10404]
[1736887040172,0.03938068,3222.4,3221.7,3.10393]
[1736887040334,0.03940025,3222.5,3221.7,3.10393]
[1736887040541,3.84987187,3222.6,3221.7,3.10393]
[1736887040542,0.03936111,3222.3,3221.7,3.10393]
[1736887040736,0.03938068,3222.4,3221.8,3.10383]
[1736887040939,0.03934154,3222.2,3221.8,3.10383]
[1736887041141,0.03936111,3222.3,3221.8,3.10383]
[1736887041363,3.55818996,3223.1,3221.5,0.63643966]
[1736887041553,0.03934154,3222.2,3222.0,3.10365]
[1736887041768,0.675419,3222.9,3222.0,3.10365]
[1736887041974,0.55,3222.8,3222.0,3.10365]
[1736887042283,0.55,3222.6,3221.7,3.10387]
[1736887042666,0.55,3222.4,3221.7,3.10387]
[1736887042864,0.55,3222.4,3221.8,3.10385]
[1736887043064,0.55,3222.2,3221.8,3.10385]
[1736887043560,0.03932196,3222.1,3221.8,3.10385]
[1736887043761,0.03932196,3222.1,3221.9,3.10373]
[1736887043982,0.61196762,3223.5,3222.2,3.10338]
[1736887043983,3.55818996,3223.2,3222.2,3.10338]
[1736887044183,0.685668,3223.1,3221.9,3.10375]
[1736887044400,0.55,3223.0,3222.1,3.10352]
[1736887044804,0.55,3222.8,3222.2,3.10346]
[1736887045314,3.788288,3223.1,3222.0,3.10364]
[1736887045315,0.55,3222.6,3222.0,3.10364]
[1736887045601,0.55,3222.6,3222.2,3.10345]
[1736887045823,0.03943163,3222.5,3221.8,3.87351]
[1736887046406,0.03943163,3222.5,3222.0,3.10361]
[1736887046605,0.03943163,3222.5,3222.2,3.10346]
[1736887046816,0.03943163,3222.5,3221.8,0.7697]
[1736887046817,0.55,3222.4,3221.8,0.7697]
[1736887046967,0.55,3222.4,3222.0,3.1036]
[1736887047169,0.55,3222.8,3222.0,3.1036]
[1736887047478,0.55,3222.6,3222.0,3.1036]
[1736887047866,0.55,3222.4,3222.0,3.1036]
[1736887048283,0.03939248,3222.3,3222.0,3.1036]
[1736887050208,0.03939248,3222.3,3222.1,3.10355]
[1736887050503,0.03939248,3222.3,3222.2,3.10346]
[1736887050876,2.93516495,3223.5,3222.5,3.1031]
[1736887050877,3.0,3223.4,3222.5,3.1031]
[1736887051082,3.9037395,3223.4,3222.5,3.10315]
[1736887051315,0.03824061,3223.3,3222.3,3.10337]
[1736887051510,0.03824061,3223.3,3222.4,3.10326]
[1736887051677,0.03824061,3223.3,3222.5,3.10317]
[1736887051678,3.55,3223.2,3222.5,3.10317]
[1736887051877,3.58822104,3223.2,3222.5,3.10317]
[1736887052209,4.34766209,3223.2,3222.3,3.10333]
[1736887052395,4.34766209,3223.2,3222.4,3.10324]
[1736887053810,0.55,3222.9,3222.1,3.10352]
[1736887054308,0.55,3222.7,3222.1,3.10352]
[1736887054784,0.55,3222.5,3221.9,3.10368]
[1736887055113,0.03686155,3222.4,3222.0,3.10365]
[1736887055413,0.03686155,3222.4,3221.8,0.7697]
[1736887055713,0.196,3223.4,3222.0,3.10366]
[1736887055890,2.93516495,3223.2,3222.1,3.10347]
[1736887056217,0.55,3223.0,3222.1,3.10347]
[1736887056384,0.55,3222.8,3222.0,3.10364]
[1736887056587,0.55,3222.8,3222.1,3.10356]
[1736887056792,0.55,3222.6,3222.1,3.10356]
[1736887057182,0.55,3222.4,3222.1,3.10356]
[1736887057597,0.03628668,3222.3,3222.1,3.10356]
[1736887058307,0.03628668,3222.3,3221.8,0.7697]
[1736887058507,0.03628668,3222.3,3221.9,3.10368]
[1736887059081,0.03628668,3222.3,3222.0,3.10363]
[1736887061210,0.03628668,3222.3,3222.1,3.10354]
[1736887063379,0.03628668,3222.3,3222.2,3.10346]
[1736887063817,0.55,3223.0,3222.2,3.10346]
[1736887064015,0.55,3222.8,3222.2,3.10346]
[1736887064417,0.55,3222.6,3222.2,3.10346]
[1736887064796,0.55,3222.4,3222.2,3.10346]
[1736887065182,0.03626784,3222.3,3222.2,3.10346]
[1736887065518,0.55,3223.0,3222.2,3.10346]
[1736887065718,0.55,3222.8,3222.2,3.10346]
[1736887066087,0.55,3222.6,3222.0,3.10361]
[1736887066483,0.55,3222.4,3222.0,3.10361]
[1736887066682,0.55,3222.4,3222.1,3.10354]
[1736887066911,0.03622752,3222.3,3222.1,3.10354]
[1736887067105,0.55,3222.8,3222.1,3.10354]
[1736887067620,0.55,3222.4,3221.8,3.10377]
[1736887067821,0.55,3222.4,3221.8,3.10383]
[1736887068059,0.55,3222.4,3221.6,3.24996707]
[1736887068060,0.03623961,3222.3,3222.1,3.10356]
[1736887068321,6.03789495,3223.0,3222.1,3.10356]
[1736887068322,3.0,3222.9,3222.1,3.10356]
[1736887068520,0.03625651,3222.2,3222.1,3.10356]
[1736887068714,0.55,3222.8,3222.1,3.10356]
[1736887068923,0.03625651,3222.2,3222.1,3.10356]
[1736887069116,0.55,3222.8,3222.1,3.10356]
[1736887069311,3.65286,3222.9,3221.9,3.10369]
[1736887069632,0.55,3222.6,3221.9,3.10369]
[1736887069803,0.55,3222.6,3222.0,3.10365]
[1736887070007,0.55,3222.4,3222.0,3.10365]
[1736887070203,0.55,3222.4,3221.7,4.02376707]
[1736887070386,0.03465106,3222.3,3222.1,3.10349]
[1736887070591,0.55,3222.8,3222.1,3.10349]
[1736887071109,0.55,3222.6,3222.1,3.10349]
[1736887071309,0.55,3222.6,3222.1,3.73054182]
[1736887071511,0.55,3222.4,3222.1,3.73054182]
[1736887071825,0.55,3222.4,3222.1,3.10349]
[1736887072032,0.03463012,3222.3,3222.1,3.10349]
[1736887073304,0.03463012,3222.3,3221.9,6.96137195]
[1736887073536,0.03463012,3222.3,3221.9,6.35365707]
[1736887073830,0.03461055,3222.2,3221.9,3.10369]
[1736887074037,3.55,3222.8,3221.9,3.10369]
[1736887074224,0.55,3222.6,3221.9,3.10369]
[1736887074412,0.55,3222.6,3222.0,3.10364]
[1736887074610,0.55,3222.4,3222.0,3.10364]
[1736887074808,0.03463012,3222.3,3222.0,3.10364]
[1736887076801,0.03463012,3222.3,3222.0,6.35360707]
[1736887077197,0.03463012,3222.3,3222.0,3.10364]
[1736887077523,0.03463012,3222.3,3221.9,3.24996707]
[1736887077524,0.55,3222.2,3221.9,3.24996707]
[1736887078131,0.03459097,3222.1,3221.9,3.24996707]
[1736887078304,0.03459097,3222.1,3221.6,3.74085583]
[1736887078305,0.03459097,3222.1,3221.7,3.24996707]
[1736887079023,0.03459097,3222.1,3221.7,6.35387707]
[1736887080433,3.29703,3222.7,3222.0,3.10366]
[1736887080434,0.194,3222.7,3222.0,3.10366]
[1736887080844,0.55,3222.5,3222.0,6.35362707]
[1736887081060,0.03461564,3222.6,3222.2,0.7885]
[1736887081243,4.83748433,3223.9,3222.3,6.13439972]
[1736887081543,0.0350229,3223.6,3222.8,3.0]
[1736887081769,0.86635393,3223.9,3223.5,3.10221]
[1736887082045,0.60100024,3224.0,3223.5,3.10221]
[1736887082375,0.03247105,3223.8,3223.7,3.10202]
[1736887082530,0.0324906,3223.9,3223.5,3.03101741]
[1736887082847,3.101,3224.8,3223.9,3.10177]
[1736887083091,3.81065189,3224.8,3223.9,3.10177]
[1736887083209,0.03156398,3224.7,3223.9,3.10177]
[1736887083821,3.51672893,3224.7,3223.7,6.35196707]
[1736887084022,0.55,3224.0,3223.7,3.24996707]
[1736887084244,0.03147153,3223.9,3223.7,3.24996707]
[1736887084555,0.03147153,3223.9,3223.5,3.24996707]
[1736887084722,0.55,3224.3,3223.2,4.66606209]
[1736887084926,0.55,3224.3,3223.5,3.10219]
[1736887084927,0.03138803,3223.8,3223.5,3.10219]
[1736887085122,0.55,3224.3,3223.5,3.10219]
[1736887085342,0.03136847,3223.7,3223.5,3.10219]
[1736887085514,0.55,3224.3,3223.5,3.10219]
[1736887085915,0.0314667,3224.2,3223.5,3.10219]
[1736887086629,0.0314667,3224.2,3223.1,6.35255707]
[1736887086630,0.55,3223.9,3223.1,3.10256]
[1736887086832,0.55,3223.9,3223.0,3.24996707]
[1736887087036,0.03150492,3223.8,3222.9,7.14118707]
[1736887087238,0.03150492,3223.8,3223.0,3.73549833]
[1736887089048,0.55,3223.6,3222.5,4.03846707]
[1736887089222,0.55,3223.3,3222.6,3.24996707]
[1736887089538,0.03072751,3223.2,3222.6,3.24996707]
[1736887089739,0.03072751,3223.2,3222.6,3.10306]
[1736887089938,0.03072751,3223.2,3222.7,3.10295]
[1736887090662,0.03072751,3223.2,3222.9,0.7885]
[1736887090892,6.03636495,3224.6,3223.0,2.93516495]
[1736887091172,6.03636495,3224.6,3223.8,3.10192]
[1736887091173,3.6230365,3224.5,3223.8,3.10192]
[1736887091458,3.6230365,3224.5,3222.9,0.7885]
[1736887091459,2.93516495,3224.3,3222.9,0.7885]
[1736887091680,0.65208334,3224.5,3222.7,6.10298]
[1736887091681,0.55,3223.9,3222.7,6.10298]
[1736887091822,0.55,3223.9,3222.8,3.24996707]
[1736887092023,0.0289727,3223.8,3223.1,3.10252]
[1736887092248,0.0289727,3223.8,3222.8,3.24996707]
[1736887092451,0.0289727,3223.8,3222.9,3.10274]
[1736887092452,0.55,3223.7,3222.9,3.10274]
[1736887092657,0.02896512,3223.6,3222.9,3.10274]
[1736887094281,0.02896512,3223.6,3222.7,0.63020901]
[1736887094433,0.02896512,3223.6,3222.7,3.10295]
[1736887094633,0.02896512,3223.6,3222.8,3.10288]
[1736887094839,0.55,3223.4,3222.8,3.10288]
[1736887095167,0.02907871,3223.3,3222.8,3.10288]
[1736887096433,0.02907871,3223.3,3222.3,1.3890674]
[1736887096674,0.02907871,3223.3,3222.5,3.10308]
[1736887097780,0.02907871,3223.3,3222.3,1.3890674]
[1736887097985,0.02907871,3223.3,3222.5,3.10312]
[1736887098212,0.02907871,3223.3,3223.2,3.1025]
[1736887098496,0.02907871,3223.3,3222.5,6.03828495]
[1736887098497,2.93516495,3223.6,3222.5,3.10312]
[1736887098691,0.02882265,3223.3,3222.6,3.103]
[1736887098980,0.02882265,3223.3,3222.4,3.88584]
[1736887098981,0.55,3223.2,3222.4,3.88584]
[1736887099198,0.55,3223.0,3222.4,3.10324]
[1736887099402,0.55,3223.0,3222.5,3.10316]
[1736887099553,0.02873917,3222.9,3222.6,3.10307]
[1736887099755,0.55,3223.2,3222.6,3.10307]
[1736887099981,0.0287196,3222.8,3222.6,3.10307]
[1736887100179,0.55,3223.2,3222.6,3.10307]
[1736887100366,0.02870003,3222.7,3222.6,3.10307]
[1736887100669,0.8985165,3223.2,3222.6,3.10307]
[1736887100876,0.0287783,3223.1,3222.6,3.10307]
[1736887102356,0.55,3223.4,3222.6,3.10307]
[1736887102557,0.02875873,3223.0,3222.6,3.10307]
[1736887102869,0.02873917,3222.9,3222.6,3.10307]
[1736887103068,0.55,3223.4,3222.6,3.10307]
[1736887103264,3.6525,3223.2,3222.2,3.10341]
[1736887103580,0.02880024,3223.1,3222.3,3.10329]
[1736887103785,0.02880024,3223.1,3222.4,3.10325]
[1736887104567,0.02880024,3223.1,3222.5,3.10317]
[1736887104763,0.55,3222.5,3221.9,3.10367]
[1736887105082,0.55,3222.5,3220.7,2.93516495]
[1736887105083,0.55,3222.2,3221.4,3.1042]
[1736887105482,0.02849374,3222.1,3221.4,3.1042]
[1736887106309,0.02849374,3222.1,3221.2,3.1044]
[1736887106459,0.55,3221.9,3221.4,3.10422]
[1736887106800,0.02830593,3221.8,3221.4,3.10422]
[1736887107167,0.55,3222.2,3221.4,3.10422]
[1736887107360,0.02791869,3221.7,3221.4,3.10422]
[1736887107561,0.55,3222.0,3221.4,3.10422]
[1736887107756,0.02789911,3221.6,3221.2,3.10439]
[1736887108107,0.55,3221.3,3220.6,0.7826]
[1736887108265,0.02781716,3221.5,3220.6,0.7826]
[1736887108672,0.55,3221.6,3220.6,0.7826]
[1736887109083,0.55,3221.6,3221.4,3.24461943]
[1736887109261,0.57719724,3221.6,3221.4,3.24461943]
[1736887109785,0.57719724,3221.6,3221.1,3.89354332]
[1736887109786,0.55,3221.4,3220.7,3.24461943]
[1736887109980,3.10422,3221.5,3220.7,3.24461943]
[1736887109981,0.55,3221.2,3220.7,3.24461943]
[1736887110314,0.55,3221.2,3220.7,3.10489]
[1736887110518,0.55,3221.2,3220.5,3.10508]
[1736887110813,0.55,3221.5,3220.4,3.1052]
[1736887111175,0.55,3221.5,3220.3,0.7826]
[1736887111176,2.93516495,3221.4,3220.3,0.7826]
[1736887111471,2.93516495,3221.4,3219.5,3.10604]
[1736887111472,2.93516495,3220.8,3220.1,3.10541]
[1736887111911,2.93516495,3220.8,3220.0,0.62315932]
[1736887112123,2.93516495,3220.8,3220.2,3.10538]
[1736887112616,2.93516495,3221.1,3220.3,3.10528]
[1736887112822,3.53911945,3221.1,3220.3,3.10528]
[1736887114213,0.55,3221.0,3220.1,3.10547]
[1736887114372,0.55,3221.0,3220.2,3.10538]
[1736887115379,3.6547,3221.0,3220.0,0.62315932]
[1736887115776,0.55,3220.8,3220.0,3.10555]
[1736887116112,0.970473,3220.8,3220.0,3.10555]
[1736887116317,0.970473,3220.8,3220.1,3.10549]
[1736887116473,6.64366945,3221.1,3220.1,3.10549]
[1736887116474,0.55,3221.0,3220.1,3.10549]
[1736887118740,3.65466,3221.0,3220.1,3.10549]
[1736887119027,0.55,3221.0,3220.1,3.10549]
[1736887119191,0.55,3221.0,3219.9,0.60901831]
[1736887119192,0.55,3221.0,3219.9,3.71464831]
[1736887119393,3.48516495,3220.4,3219.4,0.7826]
[1736887119626,0.55,3220.0,3219.3,3.10625]
[1736887119826,0.55,3220.0,3218.9,3.24461943]
[1736887120131,0.55,3220.0,3219.3,3.10625]
[1736887120677,0.55,3220.0,3219.4,3.10616]
[1736887120929,0.55,3220.0,3219.2,3.10633]
[1736887121698,1.20906049,3220.0,3218.9,0.61511472]
[1736887122241,1.20906049,3220.0,3219.3,3.10622]
[1736887122406,1.20906049,3220.0,3219.4,3.10614]
[1736887122407,0.55,3220.0,3219.4,3.10614]
[1736887123279,0.55,3220.0,3218.9,0.61511472]
[1736887123559,0.55,3220.0,3219.4,3.10608]
[1736887123919,0.55,3220.2,3219.4,3.10608]
[1736887124123,2.93516495,3220.4,3219.7,3.10587]
[1736887124328,0.193,3220.3,3219.7,3.10587]
[1736887124563,0.55,3220.2,3219.5,3.10602]
[1736887125463,0.55,3220.2,3219.0,3.10655]
[1736887125665,0.55,3220.2,3219.4,3.10613]
[1736887125874,0.55,3220.2,3218.9,0.61511472]
[1736887126056,0.55,3220.2,3219.4,3.10615]
[1736887126440,0.55,3220.0,3219.4,3.10615]
[1736887127223,0.55,3220.2,3218.9,0.61511472]
[1736887127540,0.55,3220.2,3219.4,3.10608]
[1736887127748,0.55,3220.2,3219.1,3.10645]
[1736887127953,0.55,3220.2,3219.5,3.10603]
[1736887128311,0.55,3220.2,3219.1,3.10645]
[1736887128312,0.55,3220.2,3219.2,3.10629]
[1736887128515,0.55,3220.2,3216.8,6.43894727]
[1736887128516,0.55,3219.4,3218.5,0.7659]
[1736887128806,0.55,3219.4,3218.7,3.10682]
[1736887129176,0.55,3219.4,3218.5,0.7659]
[1736887129498,0.55,3219.4,3218.6,3.10692]
[1736887129681,0.55,3219.4,3218.7,3.10681]
[1736887130717,4.31528749,3219.4,3218.5,3.107]
[1736887131014,0.55,3219.2,3218.3,3.72261291]
[1736887131234,0.55,3219.2,3218.3,0.61542291]
[1736887131511,0.55,3219.2,3218.3,3.72259291]
[1736887131873,0.55,3219.2,3218.6,3.10687]
[1736887132812,0.55,3219.2,3218.4,3.10713]
[1736887133107,0.55,3219.2,3218.5,3.10695]
[1736887133274,0.55,3219.2,3218.7,3.10683]
[1736887133472,2.93516495,3219.7,3219.0,3.10648]
[1736887133705,0.5935165,3219.6,3219.0,3.10648]
[1736887133909,0.55,3219.5,3219.1,3.10644]
[1736887135226,0.55,3219.5,3218.9,3.1066]
[1736887135429,0.55,3219.5,3218.7,3.10682]
[1736887136012,0.55,3219.3,3218.3,0.61542291]
[1736887136217,3.48516495,3219.1,3218.2,0.9480994]
[1736887136521,0.55,3219.1,3218.5,3.10702]
[1736887137121,0.55,3219.1,3218.2,0.9480994]
[1736887137439,0.55,3219.1,3218.4,3.1071]
[1736887138557,0.55,3219.1,3218.2,0.1487994]
[1736887138848,0.55,3219.1,3218.4,3.1071]
[1736887140893,0.55,3218.7,3218.2,0.1487994]
[1736887141172,6.65723,3218.3,3218.2,0.1487994]
[1736887143343,6.84923,3218.3,3218.2,0.1487994]
[1736887144053,3.742,3218.3,3218.2,0.1487994]
[1736887144275,0.55,3218.3,3218.2,0.1487994]
[1736887144468,0.192,3218.8,3218.2,0.1487994]
[1736887144672,2.93516495,3219.0,3218.2,3.2561094]
[1736887144906,2.93516495,3219.0,3218.3,3.10721]
[1736887144907,0.192,3218.9,3218.3,3.10721]
[1736887145051,0.55,3218.8,3218.3,3.10721]
[1736887145453,0.192,3218.9,3218.3,3.10721]
[1736887145688,0.192,3218.9,3218.2,0.1487994]
[1736887145880,0.55,3218.8,3218.2,3.2561094]
[1736887146789,2.93516495,3219.3,3218.2,0.1487994]
[1736887146990,0.192,3219.1,3218.6,3.10693]
[1736887147197,2.93516495,3219.3,3218.6,3.10693]
[1736887147398,0.2935165,3219.2,3218.4,3.10712]
[1736887147565,0.55,3219.1,3218.4,3.10712]
[1736887148395,0.55,3219.1,3218.2,0.1487994]
[1736887148396,0.55,3219.2,3218.2,0.1487994]
[1736887148601,0.55,3219.2,3218.3,3.10723]
[1736887148902,0.55,3219.2,3218.2,0.1487994]
[1736887148903,0.55,3219.2,3218.4,3.10704]
[1736887149066,0.55,3219.2,3218.2,3.2560694]
[1736887149396,0.55,3218.9,3218.2,0.1487994]
[1736887149596,0.55,3218.3,3218.2,0.1487994]
[1736887152270,3.65723,3218.3,3218.2,0.1487994]
[1736887152811,0.55,3218.3,3218.2,0.1487994]
[1736887153562,6.04186495,3218.9,3218.2,0.1487994]
[1736887153788,3.192,3218.8,3218.2,0.1487994]
[1736887154010,0.55,3218.5,3218.2,0.1487994]
[1736887154301,3.48516495,3218.3,3218.2,0.1487994]
[1736887155497,6.59239495,3218.3,3218.2,0.1487994]
[1736887155898,9.59239495,3218.3,3218.2,0.1487994]
[1736887156125,10.55163444,3218.3,3218.2,0.1487994]
[1736887157125,4.50923949,3218.3,3218.2,0.1487994]
[1736887157291,4.70123949,3218.3,3218.2,0.1487994]
[1736887157714,3.742,3218.3,3218.2,0.1487994]
[1736887160434,6.84923,3218.3,3218.2,0.1487994]
[1736887163006,6.84923,3218.3,3218.2,9.4e-06]
[1736887163600,7.47475536,3218.3,3218.2,9.4e-06]
[1736887166930,6.84923,3218.3,3218.2,9.4e-06]
[1736887167126,7.82766949,3218.3,3218.2,9.4e-06]
[1736887175361,0.192,3218.3,3218.2,9.4e-06]
[1736887175858,3.29923,3218.3,3218.2,9.4e-06]
[1736887176440,6.84923,3218.3,3218.2,9.4e-06]
[1736887179534,7.46191464,3218.3,3218.2,9.4e-06]
[1736887181265,7.46191464,3218.3,3216.7,0.7995]
[1736887181266,2.93516495,3217.1,3216.7,0.7995]
[1736887181468,0.55,3217.0,3216.7,0.7995]
[1736887182870,0.55,3217.2,3216.7,0.7995]
[1736887184472,0.55,3216.7,3216.1,0.7995]
[1736887185431,0.55,3216.7,3216.1,3.90878]
[1736887186273,0.55,3216.7,3216.1,0.7995]
[1736887186634,0.55,3216.7,3216.2,3.10925]
[1736887186836,6.04357495,3217.1,3216.3,0.7703]
[1736887187060,2.93516495,3217.1,3216.3,0.7703]
[1736887187258,2.93516495,3217.1,3216.0,0.7703]
[1736887187464,2.93516495,3217.1,3216.3,3.10908]
[1736887187767,0.55,3217.0,3216.3,3.10908]
[1736887188875,0.9177165,3217.0,3216.2,0.7703]
[1736887189372,0.9177165,3217.0,3216.2,3.87954]
[1736887190378,0.55,3217.0,3216.4,3.10904]
[1736887191076,0.55,3217.0,3216.3,3.10909]
[1736887192564,0.55,3216.7,3216.2,0.7703]
[1736887192984,0.55,3216.7,3216.2,3.87954]
[1736887193290,0.55,3217.0,3216.2,0.7703]
[1736887193503,0.55,3217.0,3216.2,3.87951]
[1736887193865,0.55,3217.0,3216.4,3.10903]
[1736887194297,0.9177165,3217.0,3216.2,3.8795]
[1736887194458,0.55,3216.7,3216.2,0.7703]
[1736887199098,0.55,3216.7,3215.9,0.7703]
[1736887199099,0.55,3216.4,3215.9,0.7703]
[1736887200405,2.93516495,3216.8,3215.9,0.7703]
[1736887200592,3.12716495,3216.8,3216.2,3.10924]
[1736887200908,0.55,3216.7,3216.2,3.10924]
[1736887201469,0.55,3216.7,3215.9,0.7703]
[1736887201972,0.55,3216.7,3216.1,3.10931]
[1736887202297,0.55,3216.7,3215.8,3.1096]
[1736887202298,3.9717343,3218.5,3216.5,0.7536]
[1736887202504,5.05552283,3217.8,3216.6,0.03108688]
[1736887202664,5.05552283,3217.8,3216.8,3.10859]
[1736887202665,2.93516495,3217.6,3216.8,3.10859]
[1736887202864,2.93516495,3217.3,3216.5,0.7536]
[1736887203103,0.55,3217.2,3216.5,0.7536]
[1736887203278,6.04338495,3217.3,3216.5,0.7536]
[1736887203479,2.93516495,3217.3,3216.7,3.10876]
[1736887203781,0.55,3217.2,3216.6,3.10886]
[1736887204169,0.55,3217.2,3216.7,3.10876]
[1736887204731,2.93516495,3217.6,3216.8,3.10866]
[1736887204878,2.93516495,3217.6,3216.5,0.7536]
[1736887204879,3.0,3217.5,3216.6,3.10882]
[1736887205076,3.0,3217.5,3216.5,0.7536]
[1736887205077,2.93516495,3217.3,3216.5,0.7536]
[1736887205316,6.04336495,3217.3,3216.5,0.7536]
[1736887205619,6.04336495,3217.3,3216.2,3.23694339]
[1736887205620,2.93516495,3217.0,3216.2,3.86282]
[1736887206126,2.93516495,3217.0,3216.3,3.10915]
[1736887206431,0.60434649,3217.0,3216.3,3.10915]
[1736887207415,0.60434649,3217.0,3216.2,3.8628]
[1736887207618,0.60434649,3217.0,3216.2,0.7536]
[1736887207822,0.60434649,3217.0,3216.2,3.8628]
[1736887208122,3.0,3217.2,3216.2,0.7536]
[1736887208431,3.0,3217.2,3216.5,3.10894]
[1736887208582,3.0,3217.2,3216.4,3.109]